bitfinex-derivatives/quotes_BTCF0:USTF0_20250320
["timestamp","ask_amount","ask_price","bid_price","bid_amount"]
[1742474602575,0.00017587,85281.0,85280.0,0.117317]
[1742474602775,0.1533049,85289.0,85288.0,0.117306]
[1742474602985,0.0349,85300.0,85288.0,0.52456]
[1742474603174,0.036,85299.0,85291.0,0.0586504]
[1742474603380,0.1173033,85290.0,85289.0,1.6772347]
[1742474603575,0.2173033,85290.0,85289.0,1.5]
[1742474603781,0.4873033,85290.0,85289.0,1.5]
[1742474603987,0.1173143,85282.0,85281.0,0.00017587]
[1742474604182,0.3873143,85282.0,85281.0,0.00017587]
[1742474604382,0.1173143,85282.0,85281.0,1.50017587]
[1742474604689,0.1173143,85282.0,85281.0,0.11749147]
[1742474604891,0.1882143,85282.0,85281.0,0.11749147]
[1742474605575,0.1902143,85282.0,85281.0,0.11749147]
[1742474606077,0.1922143,85282.0,85281.0,0.11749147]
[1742474606275,0.20778973,85282.0,85281.0,0.11749147]
[1742474606475,0.20778973,85282.0,85281.0,0.00017587]
[1742474606689,0.30778973,85282.0,85281.0,0.00017587]
[1742474607284,0.20778973,85282.0,85281.0,0.00017587]
[1742474607488,0.30778973,85282.0,85281.0,0.00017587]
[1742474608686,0.23958973,85282.0,85281.0,0.11749147]
[1742474609191,0.30778973,85282.0,85281.0,0.11749147]
[1742474609591,0.23958973,85282.0,85281.0,0.11749147]
[1742474610081,0.30778973,85282.0,85281.0,0.11749147]
[1742474610490,0.23958973,85282.0,85281.0,0.11749147]
[1742474610690,0.20778973,85282.0,85281.0,0.11749147]
[1742474611696,0.20778973,85282.0,85281.0,0.47829147]
[1742474612196,0.24518973,85282.0,85281.0,0.47829147]
[1742474612599,0.20778973,85282.0,85281.0,0.50889147]
[1742474612802,0.30778973,85282.0,85281.0,0.50889147]
[1742474613194,0.57778973,85282.0,85281.0,0.36097587]
[1742474613394,0.30778973,85282.0,85281.0,0.36097587]
[1742474613584,0.20778973,85282.0,85281.0,0.36097587]
[1742474613791,0.30778973,85282.0,85281.0,0.36097587]
[1742474614096,0.21578973,85282.0,85281.0,0.47829147]
[1742474614702,0.21578973,85282.0,85281.0,0.50889147]
[1742474615590,0.23958973,85282.0,85281.0,0.36097587]
[1742474615797,0.49578973,85282.0,85281.0,0.47829147]
[1742474616192,0.21578973,85282.0,85281.0,0.47829147]
[1742474616394,0.21578973,85282.0,85281.0,0.50889147]
[1742474617702,0.09847543,85282.0,85281.0,0.50889147]
[1742474618002,0.20778973,85282.0,85281.0,0.50889147]
[1742474618400,0.20778973,85282.0,85281.0,0.52889147]
[1742474619700,0.20778973,85282.0,85281.0,0.52888307]
[1742474620300,0.13958787,85292.0,85291.0,0.1172902]
[1742474620493,0.1172888,85292.0,85291.0,0.1759352]
[1742474620698,0.1172888,85292.0,85291.0,0.2441352]
[1742474620899,0.1545888,85292.0,85291.0,1.7441352]
[1742474621498,0.0413,85292.0,85291.0,1.7441352]
[1742474621799,0.00064,85309.0,85303.0,0.1172737]
[1742474622105,0.05968374,85309.0,85308.0,0.4780668]
[1742474622406,0.01968374,85309.0,85308.0,0.4780668]
[1742474622604,0.30373029,85315.0,85314.0,0.1172586]
[1742474623295,0.1172586,85314.0,85313.0,0.1679598]
[1742474623611,0.1172586,85314.0,85313.0,0.0507]
[1742474623612,0.13677062,85314.0,85313.0,0.0507]
[1742474623799,0.13677062,85314.0,85313.0,0.1679599]
[1742474623999,0.1172599,85313.0,85312.0,0.11408]
[1742474624200,0.1172599,85313.0,85312.0,0.2313413]
[1742474624405,0.2172599,85313.0,85312.0,0.2313413]
[1742474624905,0.2883599,85313.0,85312.0,0.2313413]
[1742474625300,0.2883599,85313.0,85312.0,0.1172613]
[1742474625603,0.1883599,85313.0,85312.0,0.1172613]
[1742474625808,0.1933599,85313.0,85312.0,0.1172613]
[1742474625999,0.2933599,85313.0,85312.0,0.1172613]
[1742474626597,0.2983599,85313.0,85312.0,0.1172613]
[1742474627205,0.1983599,85313.0,85312.0,0.1172613]
[1742474627395,0.2354599,85313.0,85312.0,0.2312213]
[1742474628300,0.2354599,85313.0,85312.0,0.2696213]
[1742474628700,0.2354599,85313.0,85312.0,0.3061213]
[1742474630909,0.1983599,85313.0,85312.0,0.3061213]
[1742474633414,0.0811,85313.0,85312.0,0.3061213]
[1742474634111,0.0811,85313.0,85312.0,0.3415213]
[1742474639506,0.0586178,85331.0,85316.0,0.0586273]
[1742474639811,0.0378,85319.0,85318.0,0.1172531]
[1742474639999,0.0378,85319.0,85318.0,0.6657131]
[1742474640904,0.01937706,85321.0,85320.0,0.1172503]
[1742474641102,0.0355,85322.0,85321.0,0.1172489]
[1742474642306,0.0713,85322.0,85321.0,0.1172489]
[1742474642700,0.09110714,85322.0,85321.0,0.2247489]
[1742474642910,0.09110714,85322.0,85321.0,0.1884489]
[1742474643312,0.09710714,85322.0,85321.0,0.1884489]
[1742474644317,0.21435474,85322.0,85321.0,0.1884489]
[1742474645507,0.20835474,85322.0,85321.0,0.1884489]
[1742474645814,0.21035474,85322.0,85321.0,0.1884489]
[1742474647310,0.21035474,85322.0,85321.0,0.5492489]
[1742474647520,0.31035474,85322.0,85321.0,0.3608]
[1742474647705,0.21035474,85322.0,85321.0,0.47452]
[1742474649017,0.21035474,85322.0,85321.0,0.5917689]
[1742474650720,0.21035474,85322.0,85321.0,0.6672689]
[1742474652518,0.21035474,85322.0,85321.0,0.5917689]
[1742474657820,0.1172489,85321.0,85320.0,4e-05]
[1742474658026,0.1172586,85314.0,85309.0,0.3608]
[1742474658322,0.3772586,85314.0,85313.0,0.22423122]
[1742474658523,0.1172668,85308.0,85306.0,0.00017587]
[1742474658715,0.1272668,85308.0,85306.0,0.00017587]
[1742474659524,0.1172682,85307.0,85306.0,0.00017587]
[1742474659722,0.3772682,85307.0,85306.0,0.00017587]
[1742474659926,0.3762682,85307.0,85306.0,0.00017587]
[1742474660923,0.3762682,85307.0,85306.0,0.00317587]
[1742474661427,0.3762682,85307.0,85306.0,0.07637587]
[1742474661629,0.3762682,85307.0,85306.0,0.07337587]
[1742474661630,0.4493682,85307.0,85306.0,0.07337587]
[1742474662825,0.4533682,85307.0,85306.0,0.07337587]
[1742474663017,0.5503682,85307.0,85306.0,0.00017587]
[1742474663217,0.9141682,85307.0,85306.0,0.00017587]
[1742474663828,0.8513682,85307.0,85306.0,0.00017587]
[1742474666215,0.9141682,85307.0,85306.0,0.00017587]
[1742474667729,0.8513682,85307.0,85306.0,0.00017587]
[1742474669333,0.9141682,85307.0,85306.0,0.00017587]
[1742474669525,0.7785682,85307.0,85306.0,0.00017587]
[1742474669717,0.9127682,85307.0,85306.0,0.00017587]
[1742474670336,0.8127682,85307.0,85306.0,0.00017587]
[1742474670528,0.7785682,85307.0,85306.0,0.00017587]
[1742474670728,0.7440682,85307.0,85306.0,0.00017587]
[1742474671227,0.7799682,85307.0,85306.0,0.00017587]
[1742474672534,0.7430682,85307.0,85306.0,0.00017587]
[1742474672924,0.7390682,85307.0,85306.0,0.00017587]
[1742474673126,0.7410682,85307.0,85306.0,0.00017587]
[1742474673725,0.7420682,85307.0,85306.0,0.00017587]
[1742474674130,0.7799682,85307.0,85306.0,0.00017587]
[1742474674330,0.7789682,85307.0,85306.0,0.00017587]
[1742474674630,0.7789682,85307.0,85306.0,0.07157587]
[1742474675931,0.7410682,85307.0,85306.0,0.18884547]
[1742474676123,0.7420682,85307.0,85306.0,0.18884547]
[1742474677325,0.262,85307.0,85306.0,0.18884547]
[1742474677526,0.005,85307.0,85306.0,0.54964547]
[1742474677726,0.1758806,85319.0,85318.0,0.1172531]
[1742474677940,0.11742257,85323.0,85322.0,0.1172476]
[1742474678137,0.12742257,85323.0,85322.0,0.1172476]
[1742474678447,0.11742257,85323.0,85322.0,0.1172476]
[1742474678636,0.00017587,85323.0,85322.0,0.1172476]
[1742474678830,0.11742207,85323.0,85322.0,0.1172476]
[1742474679231,0.12642207,85323.0,85322.0,0.1172476]
[1742474679637,0.058622,85325.0,85324.0,0.1172448]
[1742474680230,0.058622,85325.0,85324.0,0.5497448]
[1742474680741,0.08358813,85325.0,85324.0,0.57437802]
[1742474680941,0.08858813,85325.0,85324.0,0.57437802]
[1742474681338,0.00017587,85333.0,85332.0,0.1172338]
[1742474681638,0.11723,85340.0,85339.0,0.2344433]
[1742474681833,0.11723,85340.0,85339.0,0.3492433]
[1742474683543,0.11823,85340.0,85339.0,0.3492433]
[1742474685336,0.001,85340.0,85339.0,0.3852433]
[1742474685529,0.001,85340.0,85339.0,0.7460433]
[1742474685834,0.001,85340.0,85339.0,2.2460433]
[1742474686438,0.001,85340.0,85339.0,0.7460433]
[1742474688638,0.001,85340.0,85339.0,0.77069017]
[1742474690131,0.001,85340.0,85339.0,0.7460433]
[1742474690345,0.001,85340.0,85339.0,0.3852433]
[1742474690540,0.001,85340.0,85339.0,0.4212433]
[1742474690743,0.001,85340.0,85339.0,0.4463532]
[1742474690940,0.001,85340.0,85339.0,0.43582821]
[1742474692950,0.1182228,85340.0,85339.0,0.43582821]
[1742474693148,0.1182228,85340.0,85339.0,0.79662821]
[1742474695048,0.1182228,85340.0,85339.0,0.7820433]
[1742474696147,0.1182228,85340.0,85339.0,0.54752]
[1742474696447,0.3682228,85340.0,85339.0,0.6647442]
[1742474696647,0.1182228,85340.0,85339.0,0.6647442]
[1742474696851,0.1906228,85340.0,85339.0,0.5500242]
[1742474698153,0.1906228,85340.0,85339.0,0.1892242]
[1742474698342,0.1906228,85340.0,85339.0,0.20388016]
[1742474698753,0.1906228,85340.0,85339.0,0.1892242]
[1742474700350,0.1906228,85340.0,85339.0,0.08687133]
[1742474700948,0.2624228,85340.0,85339.0,0.01487133]
[1742474701147,0.2624228,85340.0,85331.0,0.00017576]
[1742474701148,0.1172338,85332.0,85331.0,0.00017576]
[1742474701449,0.7855338,85332.0,85331.0,0.00017576]
[1742474701954,0.8480338,85332.0,85331.0,0.00017576]
[1742474702260,0.9185338,85332.0,85331.0,0.00017576]
[1742474704856,0.1490599,85313.0,85312.0,0.0344]
[1742474705054,0.1172599,85313.0,85312.0,0.1517013]
[1742474705448,0.1172599,85313.0,85312.0,0.1871013]
[1742474705644,0.14163726,85313.0,85312.0,0.06984]
[1742474706050,0.14163726,85313.0,85312.0,0.1871013]
[1742474706448,0.14163726,85313.0,85312.0,0.06984]
[1742474706858,0.17573726,85313.0,85312.0,0.06984]
[1742474707051,0.17573726,85313.0,85312.0,0.07084]
[1742474707253,0.17573726,85313.0,85312.0,0.18536]
[1742474707459,0.17573726,85313.0,85312.0,0.18636]
[1742474708957,0.17573726,85313.0,85312.0,0.3036213]
[1742474709559,0.17573726,85313.0,85312.0,0.18636]
[1742474709763,0.17573726,85313.0,85312.0,0.3036213]
[1742474710349,0.17573726,85313.0,85312.0,0.18636]
[1742474710750,0.17573726,85313.0,85312.0,0.3036213]
[1742474710956,0.17573726,85313.0,85312.0,0.18636]
[1742474711463,0.17573726,85313.0,85312.0,0.07184]
[1742474711967,0.27573726,85313.0,85312.0,0.07184]
[1742474712161,0.17573726,85313.0,85312.0,0.07184]
[1742474712358,0.27573726,85313.0,85312.0,0.07184]
[1742474712559,0.46753726,85313.0,85312.0,0.07184]
[1742474712759,0.46753726,85313.0,85312.0,0.0364]
[1742474712961,0.53573726,85313.0,85312.0,0.0364]
[1742474713463,0.53573726,85313.0,85312.0,0.0729]
[1742474714062,0.43573726,85313.0,85312.0,0.0729]
[1742474717070,0.43573726,85313.0,85312.0,0.0719]
[1742474717367,0.43573726,85313.0,85312.0,0.0709]
[1742474719660,0.4113599,85313.0,85312.0,0.0709]
[1742474720164,0.3772599,85313.0,85312.0,0.1881613]
[1742474720387,0.1172599,85313.0,85312.0,0.1881613]
[1742474721769,0.1172599,85313.0,85312.0,0.1891613]
[1742474723169,0.1172599,85313.0,85312.0,0.1881613]
[1742474723373,0.1172599,85313.0,85312.0,0.20310272]
[1742474724172,0.1172599,85313.0,85312.0,0.20410272]
[1742474724768,0.1172599,85313.0,85312.0,0.20310272]
[1742474725267,0.02530274,85321.0,85320.0,0.1172503]
[1742474725467,0.02530274,85321.0,85320.0,0.2315703]
[1742474725862,0.02530274,85321.0,85320.0,0.31751172]
[1742474726271,0.02530274,85321.0,85320.0,0.34213803]
[1742474726472,0.00017576,85321.0,85320.0,0.31751172]
[1742474726672,0.00017576,85321.0,85320.0,0.34169552]
[1742474727569,0.34602437,85324.0,85323.0,0.1172462]
[1742474727764,0.4780146,85346.0,85345.0,0.117216]
[1742474727967,0.1172173,85344.0,85343.0,0.2315382]
[1742474728173,0.1572173,85344.0,85343.0,0.2315382]
[1742474728572,0.1572173,85344.0,85343.0,0.3042382]
[1742474728870,0.1572173,85344.0,85343.0,0.31917962]
[1742474729465,0.18177086,85344.0,85343.0,0.31917962]
[1742474731282,0.18177086,85344.0,85343.0,0.20196142]
[1742474731874,0.18177086,85344.0,85343.0,0.18702]
[1742474732074,0.14177086,85344.0,85343.0,0.18702]
[1742474732769,0.50257086,85344.0,85343.0,0.18702]
[1742474733374,0.50257086,85344.0,85343.0,0.3042387]
[1742474733577,0.50257086,85344.0,85343.0,0.31922519]
[1742474734574,0.50257086,85344.0,85343.0,0.18702]
[1742474735370,0.57787086,85344.0,85343.0,0.18702]
[1742474736475,0.50257086,85344.0,85343.0,0.31914439]
[1742474738490,0.50257086,85344.0,85343.0,0.3042387]
[1742474739674,0.53847086,85344.0,85343.0,0.3042387]
[1742474739880,0.58397086,85344.0,85343.0,0.3042387]
[1742474741479,0.68397086,85344.0,85343.0,0.18666]
[1742474741782,0.68397086,85344.0,85343.0,0.3038787]
[1742474741981,0.58397086,85344.0,85343.0,0.3038787]
[1742474742166,0.68397086,85344.0,85343.0,0.3038787]
[1742474742372,0.68397086,85344.0,85343.0,0.0727]
[1742474742579,0.58397086,85344.0,85343.0,0.18666]
[1742474742987,0.58397086,85344.0,85343.0,0.0727]
[1742474743181,0.58397086,85344.0,85343.0,0.1899187]
[1742474744290,0.58397086,85344.0,85343.0,0.2278187]
[1742474746280,0.58397086,85344.0,85343.0,0.1106]
[1742474746481,0.68397086,85344.0,85343.0,0.1106]
[1742474747080,0.68397086,85344.0,85343.0,0.0727]
[1742474748280,0.58397086,85344.0,85343.0,0.0727]
[1742474748580,0.68397086,85344.0,85343.0,0.1899187]
[1742474748780,0.62117086,85344.0,85343.0,0.0727]
[1742474748983,0.68397086,85344.0,85343.0,0.0727]
[1742474749287,0.58397086,85344.0,85343.0,0.0727]
[1742474749475,0.68397086,85344.0,85343.0,0.0727]
[1742474750282,0.58397086,85344.0,85343.0,0.0727]
[1742474750491,0.62117086,85344.0,85343.0,0.0727]
[1742474750986,0.68397086,85344.0,85343.0,0.0727]
[1742474753989,0.1172187,85343.0,85342.0,4e-05]
[1742474754187,0.4842187,85343.0,85342.0,4e-05]
[1742474754686,0.5524187,85343.0,85342.0,4e-05]
[1742474754894,0.1172242,85339.0,85338.0,0.0371]
[1742474755083,0.3572242,85339.0,85338.0,0.0371]
[1742474755282,0.4683242,85339.0,85338.0,0.0371]
[1742474755491,0.4683242,85339.0,85337.0,0.0379]
[1742474755492,0.1172256,85338.0,85337.0,0.0379]
[1742474755689,0.1172283,85336.0,85333.0,0.0361]
[1742474755890,0.7480283,85336.0,85333.0,0.0361]
[1742474756083,0.9206283,85336.0,85333.0,0.0361]
[1742474756282,1.0343483,85336.0,85327.0,0.0356]
[1742474756482,1.0343483,85336.0,85328.0,0.0361]
[1742474756989,1.0343483,85336.0,85334.0,4e-05]
[1742474757779,1.0343483,85336.0,85328.0,0.0361]
[1742474757985,1.0343483,85336.0,85334.0,4e-05]
[1742474758594,0.1172407,85327.0,85326.0,0.20945975]
[1742474758790,0.9217607,85327.0,85326.0,0.20945975]
[1742474758993,0.80452,85327.0,85325.0,4e-05]
[1742474759297,0.2509631,85326.0,85325.0,4e-05]
[1742474759483,0.5309631,85326.0,85325.0,4e-05]
[1742474759681,0.1172462,85323.0,85322.0,0.0351]
[1742474759987,0.3772462,85323.0,85322.0,0.0351]
[1742474760395,0.4841462,85323.0,85322.0,0.0351]
[1742474760994,0.1172531,85318.0,85317.0,0.00017576]
[1742474761189,0.5072531,85318.0,85317.0,0.00017576]
[1742474761390,0.4444531,85318.0,85317.0,0.00017576]
[1742474761695,0.53873984,85318.0,85317.0,0.00017576]
[1742474761895,0.60153984,85318.0,85317.0,0.00017576]
[1742474762093,0.60153984,85318.0,85317.0,0.01512311]
[1742474762293,0.53413984,85318.0,85317.0,0.05172311]
[1742474762592,0.53953984,85318.0,85317.0,0.05172311]
[1742474764097,0.53953984,85318.0,85317.0,0.03677576]
[1742474764801,0.90033984,85318.0,85317.0,0.03677576]
[1742474765093,0.89493984,85318.0,85317.0,1e-08]
[1742474765294,0.1172764,85301.0,85300.0,0.0364]
[1742474765495,0.7080764,85301.0,85300.0,0.0364]
[1742474765791,0.7831764,85301.0,85300.0,0.0364]
[1742474766193,0.7831764,85301.0,85300.0,0.0735]
[1742474766695,0.7831764,85301.0,85300.0,0.0805]
[1742474767391,0.7831764,85301.0,85300.0,0.09562021]
[1742474767791,0.7831764,85301.0,85300.0,0.0805]
[1742474768304,0.7831764,85301.0,85300.0,0.1165]
[1742474768491,0.8831764,85301.0,85300.0,0.1165]
[1742474768892,0.8149764,85301.0,85300.0,0.1165]
[1742474769088,0.8149764,85301.0,85299.0,4e-05]
[1742474769298,0.8149764,85301.0,85292.0,0.00017576]
[1742474769299,0.1172874,85293.0,85292.0,0.00017576]
[1742474769498,0.89058351,85293.0,85292.0,0.00017576]
[1742474769903,0.79058351,85293.0,85292.0,0.00017576]
[1742474770206,0.86598351,85293.0,85292.0,0.11746456]
[1742474770397,0.86298351,85293.0,85292.0,0.11746456]
[1742474770698,0.96298351,85293.0,85292.0,0.00017576]
[1742474771105,0.90018351,85293.0,85292.0,0.00017576]
[1742474771301,0.89618351,85293.0,85292.0,0.00017576]
[1742474772098,0.89618351,85293.0,85292.0,0.00317576]
[1742474772298,0.85898351,85293.0,85292.0,0.00517576]
[1742474772510,0.85898351,85293.0,85292.0,0.12246456]
[1742474772811,0.85898351,85293.0,85292.0,0.07577576]
[1742474774196,0.85898351,85293.0,85292.0,0.19306456]
[1742474774401,0.78358351,85293.0,85292.0,0.19306456]
[1742474775201,0.78358351,85293.0,85292.0,0.20796511]
[1742474775404,0.78358351,85293.0,85292.0,0.09067631]
[1742474776114,0.78358351,85293.0,85292.0,0.07577576]
[1742474776303,0.85998351,85293.0,85292.0,0.07577576]
[1742474776910,0.95998351,85293.0,85292.0,0.07577576]
[1742474777608,0.89718351,85293.0,85292.0,0.07577576]
[1742474778406,0.95998351,85293.0,85292.0,0.07577576]
[1742474779099,0.89178351,85293.0,85292.0,0.07577576]
[1742474779302,0.95998351,85293.0,85292.0,0.07577576]
[1742474779505,0.89178351,85293.0,85292.0,0.07577576]
[1742474779701,0.95998351,85293.0,85292.0,0.00517576]
[1742474780214,0.95998351,85293.0,85292.0,0.11987576]
[1742474782616,0.89718351,85293.0,85292.0,0.11987576]
[1742474782819,0.95998351,85293.0,85292.0,0.11987576]
[1742474785004,0.89178351,85293.0,85292.0,0.04427576]
[1742474785203,0.95998351,85293.0,85292.0,0.04427576]
[1742474785908,0.95998351,85293.0,85292.0,0.00517576]
[1742474789114,0.0586478,85287.0,85284.0,0.0371]
[1742474789317,0.1173108,85276.0,85275.0,4e-05]
[1742474789617,0.7699108,85276.0,85275.0,4e-05]
[1742474789806,0.8748108,85276.0,85275.0,4e-05]
[1742474790009,0.8748108,85276.0,85275.0,0.01483958]
[1742474790222,0.8066108,85276.0,85275.0,0.01483958]
[1742474790514,0.89227572,85276.0,85275.0,0.01483958]
[1742474790722,0.93097572,85276.0,85275.0,0.01483958]
[1742474791020,0.92697572,85276.0,85275.0,0.01483958]
[1742474791209,0.92697572,85276.0,85275.0,0.01983958]
[1742474791611,0.92697572,85276.0,85275.0,0.02383958]
[1742474793018,0.88827572,85276.0,85275.0,0.02383958]
[1742474793423,0.92597572,85276.0,85275.0,0.02383958]
[1742474795211,0.82597572,85276.0,85275.0,0.02383958]
[1742474796319,0.91667572,85276.0,85275.0,0.02383958]
[1742474797111,0.91657572,85276.0,85275.0,0.02383958]
[1742474799322,0.92597572,85276.0,85275.0,0.02383958]
[1742474800120,0.92597572,85276.0,85275.0,0.02379958]
[1742474800321,0.92597572,85276.0,85275.0,8e-08]
[1742474804822,0.91657572,85276.0,85275.0,8e-08]
[1742474805127,0.92597572,85276.0,85275.0,8e-08]
[1742474806829,0.82597572,85276.0,85275.0,8e-08]
[1742474807121,0.92597572,85276.0,85275.0,8e-08]
[1742474808518,0.82597572,85276.0,85275.0,8e-08]
[1742474808726,0.92597572,85276.0,85275.0,8e-08]
[1742474808925,0.85777572,85276.0,85275.0,8e-08]
[1742474809629,0.92597572,85276.0,85275.0,8e-08]
[1742474812331,0.92597572,85276.0,85234.0,0.49197964]
[1742474812332,0.05,85273.0,85234.0,0.49197964]
[1742474812636,0.7216,85245.0,85240.0,0.06339588]
[1742474812825,0.03,85258.0,85241.0,0.03946942]
[1742474813028,0.0586686,85257.0,85248.0,0.18074068]
[1742474813228,0.0586715,85253.0,85250.0,0.0586726]
[1742474813529,0.1173461,85251.0,85250.0,0.4360164]
[1742474813734,0.1173461,85251.0,85250.0,0.58981853]
[1742474814035,0.1173461,85251.0,85250.0,0.60493197]
[1742474814219,0.1173461,85251.0,85250.0,0.62926309]
[1742474814827,0.176014,85256.0,85255.0,0.1173383]
[1742474815331,0.176014,85256.0,85255.0,0.2311383]
[1742474815830,0.176014,85256.0,85255.0,0.27058286]
[1742474816034,0.178014,85256.0,85255.0,0.15678286]
[1742474816239,0.178014,85256.0,85255.0,0.27058286]
[1742474816535,0.0586643,85263.0,85259.0,0.1173342]
[1742474816836,0.175996,85262.0,85259.0,0.15677876]
[1742474817038,0.0586653,85262.0,85259.0,1.67158042]
[1742474817332,0.13977388,85262.0,85259.0,1.67158042]
[1742474817736,0.11750867,85260.0,85259.0,1.66726117]
[1742474818336,0.00017587,85260.0,85259.0,1.66726117]
[1742474818536,0.00317587,85260.0,85259.0,1.66726117]
[1742474818944,0.00617587,85260.0,85259.0,1.66726117]
[1742474819143,0.12350867,85260.0,85259.0,1.66726117]
[1742474821443,0.12350867,85260.0,85259.0,0.28106117]
[1742474821851,0.12350867,85260.0,85259.0,1.78106117]
[1742474822152,0.16140867,85260.0,85259.0,1.78106117]
[1742474823546,0.12350867,85260.0,85259.0,1.78106117]
[1742474823947,0.00617587,85260.0,85259.0,1.78106117]
[1742474824343,0.00617587,85260.0,85259.0,1.78100109]
[1742474825453,0.0419,85271.0,85270.0,0.1173191]
[1742474825662,0.1173109,85276.0,85271.0,0.4781177]
[1742474825847,0.058654,85278.0,85271.0,0.76285928]
[1742474826149,0.058654,85278.0,85271.0,0.77797272]
[1742474826352,0.058654,85278.0,85271.0,2.27797272]
[1742474826754,0.0586569,85274.0,85271.0,2.27797272]
[1742474826952,0.21661735,85277.0,85271.0,2.27797272]
[1742474827146,0.0419,85277.0,85276.0,0.1173108]
[1742474827348,0.0419,85277.0,85276.0,0.14716582]
[1742474827747,0.13977388,85279.0,85278.0,0.1173081]
[1742474827943,0.25708058,85279.0,85278.0,0.24622154]
[1742474828356,0.13977388,85279.0,85278.0,0.24622154]
[1742474828555,0.13977388,85279.0,85278.0,0.26575743]
[1742474828959,0.14277388,85279.0,85278.0,0.26575743]
[1742474829156,0.18477388,85279.0,85278.0,0.26575743]
[1742474830054,0.18977388,85279.0,85278.0,0.26575743]
[1742474830261,0.30708058,85279.0,85278.0,0.26575743]
[1742474830459,0.22927388,85279.0,85278.0,0.26575743]
[1742474831059,0.0895,85279.0,85278.0,0.26575743]
[1742474831264,0.2068067,85279.0,85278.0,0.26575743]
[1742474831456,0.0895,85279.0,85278.0,0.26575743]
[1742474832355,0.0895,85279.0,85278.0,0.34535743]
[1742474833060,0.0895,85279.0,85278.0,0.38535743]
[1742474833362,0.2068067,85279.0,85278.0,0.34535743]
[1742474833564,0.2068067,85279.0,85278.0,0.36582154]
[1742474833753,0.2068067,85279.0,85278.0,0.32582154]
[1742474833961,0.2068067,85279.0,85278.0,0.36772154]
[1742474834762,0.0895,85279.0,85278.0,0.36772154]
[1742474836473,0.0407,85284.0,85283.0,0.1173012]
[1742474836770,0.0407,85284.0,85283.0,0.2311012]
[1742474836960,0.1579998,85284.0,85283.0,1.74621464]
[1742474837759,0.0407,85284.0,85283.0,1.74621464]
[1742474838378,0.0487,85284.0,85283.0,1.74621464]
[1742474839064,0.1659998,85284.0,85283.0,1.74621464]
[1742474840270,0.0487,85284.0,85283.0,1.74621464]
[1742474840461,0.1659998,85284.0,85283.0,1.74621464]
[1742474840662,0.0487,85284.0,85283.0,1.74621464]
[1742474840863,0.1659998,85284.0,85283.0,1.74621464]
[1742474841364,0.2069998,85284.0,85283.0,1.78551464]
[1742474841872,0.0897,85284.0,85283.0,1.78551464]
[1742474842861,0.00017587,85292.0,85291.0,0.1172902]
[1742474843061,0.00017587,85292.0,85291.0,0.2310902]
[1742474843266,0.00017587,85292.0,85291.0,0.3112902]
[1742474843579,0.00017587,85292.0,85291.0,0.32640364]
[1742474843771,0.00017587,85292.0,85291.0,0.34644942]
[1742474843977,0.25705378,85299.0,85298.0,0.1172806]
[1742474844167,0.26705378,85299.0,85298.0,0.2310806]
[1742474844471,0.26705378,85299.0,85298.0,0.2703806]
[1742474844980,0.1272799,85299.0,85298.0,0.2703806]
[1742474845181,0.1172799,85299.0,85298.0,0.2703806]
[1742474845979,0.1172799,85299.0,85298.0,0.28549404]
[1742474846173,0.1959799,85299.0,85298.0,0.28549404]
[1742474850484,0.1959799,85299.0,85298.0,0.28549404]
[1742474854778,0.1959799,85299.0,85298.0,0.32699404]
[1742474858280,0.2059799,85299.0,85298.0,0.32699404]
[1742474858576,0.2059799,85299.0,85298.0,0.01511344]
[1742474858770,0.3059799,85299.0,85298.0,0.01511344]
[1742474860375,0.2059799,85299.0,85298.0,0.01511344]
[1742474860582,0.3059799,85299.0,85298.0,0.01511344]
[1742474862087,0.2059799,85299.0,85298.0,0.01511344]
[1742474862287,0.2431799,85299.0,85298.0,0.01511344]
[1742474862486,0.3059799,85299.0,85298.0,0.13239404]
[1742474862687,0.2431799,85299.0,85298.0,0.13239404]
[1742474862878,0.3059799,85299.0,85298.0,0.13239404]
[1742474863290,0.2431799,85299.0,85298.0,0.13239404]
[1742474863487,0.2431799,85299.0,85298.0,0.17169404]
[1742474863789,0.2059799,85299.0,85298.0,0.21269404]
[1742474864178,0.2059799,85299.0,85298.0,0.25259404]
[1742474864379,0.2059799,85299.0,85298.0,0.38650167]
[1742474864579,0.2059799,85299.0,85298.0,0.36635404]
[1742474864986,0.2059799,85299.0,85298.0,0.28715404]
[1742474865682,0.2059799,85299.0,85298.0,0.32735404]
[1742474866180,0.2059799,85299.0,85298.0,0.21007344]
[1742474866380,0.2059799,85299.0,85298.0,0.32735404]
[1742474870189,0.2059799,85299.0,85298.0,0.36565404]
[1742474870791,0.1666799,85299.0,85298.0,0.36565404]
[1742474870995,0.1282799,85299.0,85298.0,0.36565404]
[1742474871492,0.1685799,85299.0,85298.0,0.36565404]
[1742474871690,0.2084799,85299.0,85298.0,0.36565404]
[1742474877595,0.3084799,85299.0,85298.0,0.24837344]
[1742474878103,0.36550539,85299.0,85298.0,0.05611344]
[1742474878301,0.36550539,85299.0,85298.0,0.01511344]
[1742474878494,0.36550539,85299.0,85298.0,0.13239404]
[1742474878690,0.36550539,85299.0,85298.0,0.16919404]
[1742474878888,0.26550539,85299.0,85298.0,0.16919404]
[1742474879199,0.36550539,85299.0,85298.0,0.0368]
[1742474879388,0.36550539,85299.0,85283.0,0.39533425]
[1742474879389,0.1172998,85284.0,85283.0,0.39887405]
[1742474879585,0.3572998,85284.0,85283.0,0.28157425]
[1742474879990,0.37551787,85284.0,85283.0,0.43587545]
[1742474880191,0.47551787,85284.0,85283.0,0.43587545]
[1742474880391,0.37551787,85284.0,85283.0,0.4505397]
[1742474880602,0.37551787,85284.0,85283.0,0.4535397]
[1742474880801,0.41291787,85284.0,85283.0,0.4926397]
[1742474881304,0.45031787,85284.0,85283.0,0.4926397]
[1742474881691,0.50734336,85284.0,85283.0,0.21124132]
[1742474881892,0.60734336,85284.0,85283.0,0.09394012]
[1742474882092,0.2173108,85277.0,85276.0,0.1173108]
[1742474882297,0.1173136,85274.0,85273.0,0.1937136]
[1742474882498,0.1273136,85274.0,85273.0,0.0764]
[1742474882700,0.2273136,85274.0,85273.0,0.0391]
[1742474883006,0.5881136,85274.0,85273.0,0.0391]
[1742474883302,0.5841136,85274.0,85273.0,0.0391]
[1742474883491,0.1173149,85273.0,85272.0,4e-05]
[1742474883696,0.1173163,85272.0,85271.0,0.21108066]
[1742474884012,0.4773163,85272.0,85271.0,0.21108066]
[1742474884199,0.5541163,85272.0,85271.0,0.21108066]
[1742474884398,0.5541163,85272.0,85271.0,0.21112066]
[1742474884602,0.57278813,85272.0,85271.0,0.21112066]
[1742474885296,0.50998813,85272.0,85271.0,0.21112066]
[1742474885496,0.50698813,85272.0,85271.0,0.21412066]
[1742474886101,0.50998813,85272.0,85271.0,4e-05]
[1742474886296,0.51298813,85272.0,85271.0,4e-05]
[1742474887198,0.57578813,85272.0,85271.0,4e-05]
[1742474890514,0.49898813,85272.0,85271.0,4e-05]
[1742474890801,0.53868813,85272.0,85271.0,4e-05]